lending/lending_fUSD_20250819
["ID","MTS","AMOUNT","RATE_DAILY","PERIOD"]
[380263318,1755629690494,-400.0,0.00024917,30]
[380263319,1755629690541,-863.46,0.00024917,30]
[380263320,1755629690596,-552.56,0.00024917,30]
[380263321,1755629690647,-1028.61,0.00024917,30]
[380263322,1755629690695,-400.0,0.00024917,30]
[380263323,1755629690745,-400.0,0.00024917,30]
[380263324,1755629690794,-400.0,0.00024917,30]
[380263325,1755629690844,-615.04,0.00024917,30]
[380263326,1755629690896,-2378.99,0.00024917,30]
[380263327,1755629690944,-528.72,0.00024917,30]
[380263328,1755629690990,-609.03,0.00024917,30]
[380263329,1755629691040,-1288.09,0.00024917,30]
[380263330,1755629691093,-2105.04,0.00024917,30]
[380263331,1755629691153,-582.33,0.00024917,30]
[380263332,1755629691206,-549.59,0.00024917,30]
[380263333,1755629691259,-1951.52,0.00024917,30]
[380263334,1755629691311,-400.0,0.00024917,30]
[380263335,1755629691363,-2824.71,0.00024917,30]
[380263336,1755629691415,-1642.2,0.00024917,30]
[380263337,1755629691463,-2247.03,0.00024917,30]
[380263338,1755629691508,-1299.26,0.00024917,30]
[380263339,1755629691554,-400.0,0.00024917,30]
[380263340,1755629691598,-1161.22,0.00024917,30]
[380263341,1755629691649,-400.0,0.00024917,30]
[380263342,1755629691698,-1430.52,0.00024917,30]
[380263343,1755629691748,-1440.27,0.00024917,30]
[380263344,1755629691798,-873.42,0.00024917,30]
[380263345,1755629691847,-2138.96,0.00024917,30]
[380263346,1755629691898,-5091.06,0.00024917,30]
[380263347,1755629691943,-403.04,0.00024917,30]
[380263348,1755629691989,-1319.16,0.00024917,30]
[380263349,1755629692037,-2794.97,0.00024917,30]
[380263350,1755629692084,-9767.21,0.00024917,30]
[380263351,1755629692130,-1856.7,0.00024917,30]
[380263352,1755629692177,-400.0,0.00024917,30]
[380263353,1755629692226,-400.0,0.00024917,30]
[380263354,1755629692273,-400.0,0.00024917,30]
[380263355,1755629692572,-2336.1,0.00024917,30]
[380263356,1755629692623,-400.0,0.00024917,30]
[380263357,1755629692674,-886.26,0.00024917,30]
[380263358,1755629692724,-2387.6,0.00024917,30]
[380263359,1755629692771,-8648.05,0.00024917,30]
[380263360,1755629692818,-400.0,0.00024917,30]
[380263361,1755629692864,-613.46,0.00024917,30]
[380263362,1755629692910,-533.96,0.00024917,30]
[380263363,1755629692958,-2852.26,0.00024917,30]
[380263364,1755629693006,-1104.69,0.00024917,30]
[380263365,1755629693055,-1505.36,0.00024917,30]
[380263366,1755629693106,-400.0,0.00024917,30]
[380263367,1755629693159,-3210.75,0.00024917,30]
[380263368,1755629693209,-2779.66,0.00024917,30]
[380263369,1755629693261,-312.47463771,0.00024917,30]
[380263370,1755629693309,-3076.17,0.00024917,30]
[380263371,1755629693357,-2284.58,0.00024917,30]
[380263372,1755629693415,-2134.11,0.00024917,30]
[380263373,1755629693475,-2430.08,0.00024917,30]
[380263374,1755629693538,-400.0,0.00024917,30]
[380263375,1755629693588,-400.0,0.00024917,30]
[380263376,1755629693636,-400.0,0.00024917,30]
[380263377,1755629693682,-400.0,0.00024917,30]
[380263378,1755629693728,-2514.7,0.00024917,30]
[380263379,1755629693775,-2373.48,0.00024917,30]
[380263380,1755629693821,-745.23,0.00024917,30]
[380263381,1755629693868,-605.17,0.00024917,30]
[380263382,1755629693917,-1029.54,0.00024917,30]
[380263383,1755629693967,-3448.04,0.00024917,30]
[380263384,1755629694017,-2357.68,0.00024917,30]
[380263385,1755629694069,-503.46,0.00024917,30]
[380263386,1755629694120,-400.0,0.00024917,30]
[380263387,1755629694170,-400.0,0.00024917,30]
[380263388,1755629694221,-404.26,0.00024917,30]
[380263389,1755629694274,-1373.57,0.00024917,30]
[380263390,1755629694321,-400.0,0.00024917,30]
[380263391,1755629694368,-2686.2,0.00024917,30]
[380263392,1755629694416,-400.0,0.00024917,30]
[380263393,1755629694463,-400.0,0.00024917,30]
[380263394,1755629694509,-1835.59,0.00024917,30]
[380263395,1755629694553,-1238.74,0.00024917,30]
[380263396,1755629694598,-4200.35,0.00024917,30]
[380263397,1755629694644,-1206.55,0.00024917,30]
[380263398,1755629694689,-2460.68,0.00024917,30]
[380263399,1755629694733,-400.0,0.00024917,30]
[380263400,1755629694780,-4651.33,0.00024917,30]
[380263401,1755629694827,-3433.97,0.00024917,30]
[380263402,1755629694877,-736.49,0.00024917,30]
[380263403,1755629694925,-400.0,0.00024917,30]
[380263404,1755629694973,-400.0,0.00024917,30]
[380263405,1755629695022,-1557.33,0.00024917,30]
[380263406,1755629695069,-5950.32,0.00024917,30]
[380263407,1755629695121,-400.0,0.00024917,30]
[380263408,1755629695184,-400.0,0.00024917,30]
[380263409,1755629695249,-2272.47,0.00024917,30]
[380263410,1755629695313,-949.33,0.00024917,30]
[380263411,1755629695371,-400.0,0.00024917,30]
[380263412,1755629695422,-557.78,0.00024917,30]
[380263413,1755629695473,-4401.83,0.00024917,30]
[380263414,1755629695524,-618.28,0.00024917,30]
[380263415,1755629695576,-2999.81,0.00024917,30]
[380263416,1755629695626,-400.0,0.00024917,30]
[380263417,1755629695676,-2530.73,0.00024917,30]
[380263418,1755629695730,-3017.82,0.00024917,30]
[380263419,1755629695780,-508.97,0.00024917,30]
[380263420,1755629695831,-400.0,0.00024917,30]
[380263421,1755629695881,-731.53,0.00024917,30]
[380263422,1755629695932,-13739.54,0.00024917,30]
[380263423,1755629695981,-504.15,0.00024917,30]
[380263424,1755629696034,-5408.34,0.00024917,30]
[380263425,1755629696088,-1737.18,0.00024917,30]
[380263426,1755629696142,-2927.84,0.00024917,30]
[380263427,1755629696192,-400.0,0.00024917,30]
[380263428,1755629696241,-1391.14,0.00024917,30]
[380263429,1755629696290,-400.0,0.00024917,30]
[380263430,1755629696338,-793.38,0.00024917,30]
[380263431,1755629696386,-466.8,0.00024917,30]
[380263432,1755629696435,-2851.15,0.00024917,30]
[380263433,1755629696479,-1988.61,0.00024917,30]
[380263434,1755629696525,-400.0,0.00024917,30]
[380263435,1755629696569,-5744.77,0.00024917,30]
[380263436,1755629696614,-438.95,0.00024917,30]
[380263437,1755629696657,-531.03,0.00024917,30]
[380263438,1755629696700,-400.0,0.00024917,30]
[380263439,1755629696745,-400.0,0.00024917,30]
[380263440,1755629696792,-400.0,0.00024917,30]
[380263441,1755629696839,-8313.98,0.00024917,30]
[380263442,1755629696884,-2839.12,0.00024917,30]
[380263443,1755629696929,-2228.12,0.00024917,30]
[380263444,1755629696975,-2982.47,0.00024917,30]
[380263445,1755629697018,-1818.87,0.00024917,30]
[380263446,1755629697063,-6459.08,0.00024917,30]
[380263447,1755629697109,-600.27,0.00024917,30]
[380263448,1755629697159,-1141.2,0.00024917,30]
[380263449,1755629697204,-655.95,0.00024917,30]
[380263450,1755629697253,-2988.69,0.00024917,30]
[380263451,1755629697302,-1484.62,0.00024917,30]
[380263452,1755629697349,-2194.47,0.00024917,30]
[380263453,1755629697396,-465.01,0.00024917,30]
[380263454,1755629697440,-2581.56,0.00024917,30]
[380263455,1755629697483,-2146.97,0.00024917,30]
[380263456,1755629697525,-400.0,0.00024917,30]
[380263457,1755629697569,-2398.9,0.00024917,30]
[380263458,1755629697610,-1002.47,0.00024917,30]
[380263459,1755629697652,-5236.54,0.00024917,30]
[380263460,1755629697695,-1952.94,0.00024917,30]
[380263461,1755629697745,-400.0,0.00024917,30]
[380263462,1755629697795,-400.0,0.00024917,30]
[380263463,1755629697846,-1771.72,0.00024917,30]
[380263464,1755629697897,-400.0,0.00024917,30]
[380263465,1755629697945,-2157.93,0.00024917,30]
[380263466,1755629697992,-1269.7,0.00024917,30]
[380263467,1755629698041,-574.43,0.00024917,30]
[380263468,1755629698089,-530.22,0.00024917,30]
[380263469,1755629698137,-400.0,0.00024917,30]
[380263470,1755629698420,-701.04,0.00024917,30]
[380263471,1755629698469,-1792.5,0.00024917,30]
[380263472,1755629698513,-13853.77,0.00024917,30]
[380263473,1755629698557,-400.0,0.00024917,30]
[380263474,1755629698603,-3509.78,0.00024917,30]
[380263475,1755629698650,-899.28,0.00024917,30]
[380263476,1755629698696,-2160.57,0.00024917,30]
[380263477,1755629698742,-5482.37,0.00024917,30]
[380263478,1755629698786,-1714.08,0.00024917,30]
[380263479,1755629698829,-1767.59,0.00024917,30]
[380263480,1755629698874,-400.0,0.00024917,30]
[380263481,1755629698918,-3518.02,0.00024917,30]
[380263482,1755629698961,-694.79,0.00024917,30]
[380263483,1755629699004,-536.43,0.00024917,30]
[380263484,1755629699049,-9944.32,0.00024917,30]
[380263485,1755629699093,-1214.14,0.00024917,30]
[380263486,1755629699136,-2414.97,0.00024917,30]
[380263487,1755629699178,-2913.31,0.00024917,30]
[380263488,1755629699223,-400.0,0.00024917,30]
[380263489,1755629699269,-665.01,0.00024917,30]
[380263490,1755629699316,-400.0,0.00024917,30]
[380263491,1755629699366,-467.17,0.00024917,30]
[380263492,1755629699414,-1564.68,0.00024917,30]
[380263493,1755629699464,-3495.15,0.00024917,30]
[380263494,1755629699514,-400.0,0.00024917,30]
[380263495,1755629699560,-400.0,0.00024917,30]
[380263496,1755629699602,-5306.47,0.00024917,30]
[380263497,1755629699644,-1902.63,0.00024917,30]
[380263498,1755629699686,-419.97,0.00024917,30]
[380263499,1755629699729,-457.96,0.00024917,30]
[380263500,1755629699773,-400.0,0.00024917,30]
[380263501,1755629699818,-400.0,0.00024917,30]
[380263502,1755629699862,-400.0,0.00024917,30]
[380263503,1755629699907,-1581.53,0.00024917,30]
[380263504,1755629699950,-469.54,0.00024917,30]
[380263505,1755629699994,-886.22,0.00024917,30]
[380263506,1755629700040,-3147.2,0.00024917,30]
[380263507,1755629700094,-2099.26,0.00024917,30]
[380263508,1755629700150,-845.89,0.00024917,30]
[380263509,1755629700213,-496.54,0.00024917,30]
[380263510,1755629700272,-1879.09,0.00024917,30]
[380263511,1755629700329,-2641.07,0.00024917,30]
[380263512,1755629700385,-1350.55,0.00024917,30]
[380263513,1755629700434,-792.84,0.00024917,30]
[380263514,1755629700480,-4723.51,0.00024917,30]
[380263515,1755629700526,-2510.78,0.00024917,30]
[380263516,1755629700573,-1157.65,0.00024917,30]
[380263517,1755629700622,-3198.68,0.00024917,30]
[380263518,1755629700668,-1686.82,0.00024917,30]
[380263519,1755629700714,-1134.14,0.00024917,30]
[380263520,1755629700763,-963.72,0.00024917,30]
[380263521,1755629700813,-985.51,0.00024917,30]
[380263522,1755629700861,-2783.51,0.00024917,30]
[380263523,1755629700909,-2992.17,0.00024917,30]
[380263524,1755629700955,-1901.27,0.00024917,30]
[380263525,1755629701002,-1793.91,0.00024917,30]
[380263526,1755629701049,-1341.44,0.00024917,30]
[380263527,1755629701097,-2034.19,0.00024917,30]
[380263528,1755629701146,-1021.54,0.00024917,30]
[380263529,1755629701197,-2475.91,0.00024917,30]
[380263530,1755629701251,-400.0,0.00024917,30]
[380263531,1755629701304,-400.0,0.00024917,30]
[380263532,1755629701356,-2487.45,0.00024917,30]
[380263533,1755629701409,-1456.34,0.00024917,30]
[380263534,1755629701460,-400.0,0.00024917,30]
[380263535,1755629701505,-2913.63,0.00024917,30]
[380263536,1755629701549,-1728.12,0.00024917,30]
[380263537,1755629701593,-834.55,0.00024917,30]
[380263538,1755629701639,-2304.79,0.00024917,30]
[380263539,1755629701691,-2028.51,0.00024917,30]
[380263540,1755629701739,-400.0,0.00024917,30]
[380263541,1755629701789,-2611.6,0.00024917,30]
[380263542,1755629701837,-400.0,0.00024917,30]
[380263543,1755629701892,-457.07464329,0.00024917,30]
[380263544,1755629701943,-3231.28,0.00024917,30]
[380263545,1755629701991,-1122.01,0.00024917,30]
[380263546,1755629702037,-777.5,0.00024917,30]
[380263547,1755629702086,-520.94,0.00024917,30]
[380263548,1755629702134,-2348.43,0.00024917,30]
[380263549,1755629702185,-4782.01,0.00024917,30]
[380263550,1755629702235,-2516.46,0.00024917,30]
[380263551,1755629702284,-424.95,0.00024917,30]
[380263552,1755629702334,-1526.27,0.00024917,30]
[380263553,1755629702385,-8524.05,0.00024917,30]
[380263554,1755629702431,-3059.67,0.00024917,30]
[380263555,1755629702477,-666.12,0.00024917,30]
[380263556,1755629702521,-400.0,0.00024917,30]
[380263557,1755629702563,-515.84,0.00024917,30]
[380263558,1755629702606,-1507.55,0.00024917,30]
[380263559,1755629702654,-780.16,0.00024917,30]
[380263560,1755629702703,-969.16,0.00024917,30]
[380263561,1755629702753,-3650.84,0.00024917,30]
[380263562,1755629702804,-2356.88,0.00024917,30]
[380263563,1755629702852,-2391.14,0.00024917,30]
[380263564,1755629702902,-3890.97,0.00024917,30]
[380263565,1755629702949,-2014.11,0.00024917,30]
[380263566,1755629702995,-400.0,0.00024917,30]
[380263567,1755629703046,-1638.73,0.00024917,30]
[380263568,1755629703104,-1465.39,0.00024917,30]
[380263569,1755629703164,-3634.02,0.00024917,30]
[380263570,1755629703224,-1260.84,0.00024917,30]
[380263571,1755629703284,-341.00572945,0.00024917,30]
[380263572,1755629703346,-400.0,0.00024917,30]
[380263573,1755629703405,-5708.89,0.00024917,30]
[380263574,1755629703481,-2109.09,0.00024917,30]
[380263575,1755629703544,-540.39,0.00024917,30]
[380263576,1755629703605,-2438.86,0.00024917,30]
[380263577,1755629703670,-2744.23,0.00024917,30]
[380263578,1755629703733,-1157.36,0.00024917,30]
[380263579,1755629703797,-926.19,0.00024917,30]
[380263580,1755629703860,-400.0,0.00024917,30]
[380263581,1755629703926,-555.23,0.00024917,30]
[380263582,1755629703991,-498.22,0.00024917,30]
[380263583,1755629704056,-401.66,0.00024917,30]
[380263584,1755629704121,-5111.01,0.00024917,30]
[380263585,1755629704574,-2294.56,0.00024917,30]
[380263586,1755629704636,-2885.07579031,0.00024917,30]
[380263587,1755629831507,181.0,7.2e-05,2]
[380263588,1755629831652,178.0,8.38e-05,2]
[380263591,1755630307100,-39048.40057933,0.00032572,32]
[380263592,1755630307157,-50000.0,0.00032572,33]
[380263593,1755630307211,-50000.0,0.00032572,34]
[380263594,1755630307264,-50000.0,0.00032572,35]
[380263595,1755630307322,-50000.0,0.00032572,36]
[380263596,1755630307375,-50000.0,0.00032572,37]
[380263597,1755630307432,-50000.0,0.00032572,38]
[380263598,1755630307487,-50000.0,0.00032572,39]
[380263599,1755630307540,-158.1,0.00032572,30]
[380263600,1755630307589,-68189.7507141,0.00032572,60]
[380263601,1755630307637,-93135.94287574,0.00032572,30]
[380263602,1755630307684,-6300.0,0.00032572,120]
[380263603,1755630307732,-166.66666667,0.00032572,120]
[380263604,1755630307779,-500.0,0.00032572,120]
[380263605,1755630307825,-382.12,0.00032572,120]
[380263606,1755630307872,-1984.306313,0.00032572,120]
[380263607,1755630307924,-1000.0,0.00032572,90]
[380263608,1755630307972,-462.93919079,0.00032572,120]
[380263609,1755630308020,-3000.0,0.00032572,120]
[380263610,1755630308070,-3000.0,0.00032572,120]
[380263611,1755630308121,-2163.0,0.00032572,120]
[380263612,1755630308177,-3000.0,0.00032572,120]
[380263613,1755630308230,-842.5,0.00032572,90]
[380263614,1755630308286,-1000.0,0.00032572,120]
[380263615,1755630308343,-842.5,0.00032572,120]
[380263616,1755630308396,-3000.0,0.00032572,120]
[380263617,1755630308449,-1081.0,0.00032572,120]
[380263618,1755630308498,-500.0,0.00032572,120]
[380263619,1755630308548,-165.7,0.00032572,30]
[380263620,1755630328679,-661.18,0.00022999,30]
[380263621,1755630328732,-897.36,0.00022999,30]
[380263622,1755630328784,-400.0,0.00022999,30]
[380263623,1755630328838,-400.0,0.00022999,30]
[380263624,1755630328892,-1779.17,0.00022999,30]
[380263625,1755630328947,-868.82,0.00022999,30]
[380263626,1755630328996,-400.0,0.00022999,30]
[380263627,1755630329046,-931.81,0.00022999,30]
[380263628,1755630329095,-400.0,0.00022999,30]
[380263629,1755630329147,-400.0,0.00022999,30]
[380263630,1755630329199,-1278.53,0.00022999,30]
[380263631,1755630329250,-400.0,0.00022999,30]
[380263632,1755630329303,-922.03,0.00022999,30]
[380263633,1755630329356,-1998.66,0.00022999,30]
[380263634,1755630329406,-523.74,0.00022999,30]
[380263635,1755630329456,-1077.73,0.00022999,30]
[380263636,1755630329507,-400.0,0.00022999,30]
[380263637,1755630329557,-1083.11,0.00022999,30]
[380263638,1755630329607,-424.48,0.00022999,30]
[380263639,1755630329654,-1726.78,0.00022999,30]
[380263640,1755630329702,-400.0,0.00022999,30]
[380263641,1755630329753,-400.0,0.00022999,30]
[380263642,1755630329802,-400.0,0.00022999,30]
[380263643,1755630329850,-573.46,0.00022999,30]
[380263644,1755630329900,-405.71,0.00022999,30]
[380263645,1755630329948,-400.0,0.00022999,30]
[380263646,1755630329998,-1010.67,0.00022999,30]
[380263647,1755630330050,-1099.82,0.00022999,30]
[380263648,1755630330100,-1556.93,0.00022999,30]
[380263649,1755630330152,-400.0,0.00022999,30]
[380263650,1755630330204,-400.0,0.00022999,30]
[380263651,1755630330255,-434.09,0.00022999,30]
[380263652,1755630330307,-400.0,0.00022999,30]
[380263653,1755630330360,-1791.08,0.00022999,30]
[380263654,1755630330412,-1835.72,0.00022999,30]
[380263655,1755630330465,-500.0,0.00022999,30]
[380263656,1755630330518,-500.0,0.00022999,30]
[380263657,1755630330573,-500.0,0.00022999,30]
[380263658,1755630330623,-500.0,0.00022999,30]
[380263659,1755630330672,-500.0,0.00022999,30]
[380263660,1755630330720,-500.0,0.00022999,30]
[380263661,1755630330770,-500.0,0.00022999,30]
[380263662,1755630330821,-500.0,0.00022999,30]
[380263663,1755630330874,-500.0,0.00022999,30]
[380263664,1755630330927,-500.0,0.00022999,30]
[380263665,1755630330979,-500.0,0.00022999,30]
[380263666,1755630331032,-500.0,0.00022999,30]
[380263667,1755630331082,-500.0,0.00022999,30]
[380263668,1755630331137,-500.0,0.00022999,30]
[380263669,1755630331192,-500.0,0.00022999,30]
[380263670,1755630331245,-500.0,0.00022999,30]
[380263671,1755630331298,-500.0,0.00022999,30]
[380263672,1755630331352,-1178.09,0.00022999,30]
[380263673,1755630331405,-500.0,0.00022999,30]
[380263674,1755630331456,-500.0,0.00022999,30]
[380263675,1755630331505,-500.0,0.00022999,30]
[380263676,1755630331554,-500.0,0.00022999,30]
[380263677,1755630331603,-400.0,0.00022999,30]
[380263678,1755630331654,-412.56,0.00022999,30]
[380263679,1755630331702,-1032.27,0.00022999,30]
[380263680,1755630331751,-405.59,0.00022999,30]
[380263681,1755630331799,-657.7,0.00022999,30]
[380263682,1755630331847,-2773.84,0.00022999,30]
[380263683,1755630331893,-1415.69,0.00022999,30]
[380263684,1755630331942,-500.0,0.00022999,30]
[380263685,1755630331988,-2616.85,0.00022999,30]
[380263686,1755630332036,-569.65,0.00022999,30]
[380263687,1755630332084,-461.18,0.00022999,30]
[380263688,1755630332134,-407.36,0.00022999,30]
[380263689,1755630332186,-438.1,0.00022999,30]
[380263690,1755630332239,-400.0,0.00022999,30]
[380263691,1755630332294,-609.41,0.00022999,30]
[380263692,1755630332348,-523.45,0.00022999,30]
[380263693,1755630332405,-2291.88,0.00022999,30]
[380263694,1755630332465,-1883.4,0.00022999,30]
[380263695,1755630332520,-1113.47,0.00022999,30]
[380263696,1755630332575,-2659.67,0.00022999,30]
[380263697,1755630332627,-1973.84,0.00022999,30]
[380263698,1755630332678,-1609.3,0.00022999,30]
[380263699,1755630332728,-400.0,0.00022999,30]
[380263700,1755630332778,-2474.93,0.00022999,30]
[380263701,1755630332828,-400.0,0.00022999,30]
[380263702,1755630332880,-580.89,0.00022999,30]
[380263703,1755630332938,-503.96,0.00022999,30]
[380263704,1755630332991,-1390.04,0.00022999,30]
[380263705,1755630333047,-1375.63,0.00022999,30]
[380263706,1755630333103,-2391.62,0.00022999,30]
[380263707,1755630333159,-829.42,0.00022999,30]
[380263708,1755630333214,-400.0,0.00022999,30]
[380263709,1755630333269,-2483.35,0.00022999,30]
[380263710,1755630333327,-400.0,0.00022999,30]
[380263711,1755630333388,-2313.87,0.00022999,30]
[380263712,1755630333444,-567.71,0.00022999,30]
[380263713,1755630333499,-976.66,0.00022999,30]
[380263714,1755630333556,-402.22,0.00022999,30]
[380263715,1755630333933,-400.0,0.00022999,30]
[380263716,1755630333991,-400.0,0.00022999,30]
[380263717,1755630334049,-444.55,0.00022999,30]
[380263718,1755630334109,-400.0,0.00022999,30]
[380263719,1755630334167,-2523.31,0.00022999,30]
[380263720,1755630334228,-3390.74,0.00022999,30]
[380263721,1755630334288,-400.0,0.00022999,30]
[380263722,1755630334348,-400.0,0.00022999,30]
[380263723,1755630334412,-1613.2,0.00022999,30]
[380263724,1755630334470,-655.88,0.00022999,30]
[380263725,1755630334526,-1683.94,0.00022999,30]
[380263726,1755630334585,-2173.68,0.00022999,30]
[380263727,1755630334640,-2265.47,0.00022999,30]
[380263728,1755630334695,-400.0,0.00022999,30]
[380263729,1755630334748,-2568.38,0.00022999,30]
[380263730,1755630334802,-400.0,0.00022999,30]
[380263731,1755630334857,-646.96,0.00022999,30]
[380263732,1755630334912,-1093.07,0.00022999,30]
[380263733,1755630334974,-1066.76,0.00022999,30]
[380263734,1755630335035,-1739.56,0.00022999,30]
[380263735,1755630335092,-2666.99,0.00022999,30]
[380263736,1755630335148,-1769.99,0.00022999,30]
[380263737,1755630335204,-400.0,0.00022999,30]
[380263738,1755630335254,-1163.48,0.00022999,30]
[380263739,1755630335307,-750.6,0.00022999,30]
[380263740,1755630335360,-400.0,0.00022999,30]
[380263741,1755630335413,-400.0,0.00022999,30]
[380263742,1755630335465,-983.97,0.00022999,30]
[380263743,1755630335518,-1275.26,0.00022999,30]
[380263744,1755630335584,-1304.3,0.00022999,30]
[380263745,1755630335635,-1417.75,0.00022999,30]
[380263746,1755630335686,-1826.41,0.00022999,30]
[380263747,1755630335737,-1984.55,0.00022999,30]
[380263748,1755630335785,-475.91,0.00022999,30]
[380263749,1755630335831,-2197.7,0.00022999,30]
[380263750,1755630335878,-441.25,0.00022999,30]
[380263751,1755630335923,-400.0,0.00022999,30]
[380263752,1755630335968,-2376.92,0.00022999,30]
[380263753,1755630336015,-400.0,0.00022999,30]
[380263754,1755630336066,-1698.15,0.00022999,30]
[380263755,1755630336117,-1243.9,0.00022999,30]
[380263756,1755630336167,-2729.11,0.00022999,30]
[380263757,1755630336216,-400.0,0.00022999,30]
[380263758,1755630336268,-400.0,0.00022999,30]
[380263759,1755630336320,-514.92,0.00022999,30]
[380263760,1755630336370,-400.0,0.00022999,30]
[380263761,1755630336421,-2276.56,0.00022999,30]
[380263762,1755630336469,-400.0,0.00022999,30]
[380263763,1755630336517,-2659.25,0.00022999,30]
[380263764,1755630336577,-474.19,0.00022999,30]
[380263765,1755630336626,-2376.31,0.00022999,30]
[380263766,1755630336683,-400.0,0.00022999,30]
[380263767,1755630336737,-1207.05,0.00022999,30]
[380263768,1755630336790,-400.0,0.00022999,30]
[380263769,1755630336840,-400.0,0.00022999,30]
[380263770,1755630336891,-400.0,0.00022999,30]
[380263771,1755630336945,-400.0,0.00022999,30]
[380263772,1755630336995,-633.48,0.00022999,30]
[380263773,1755630337043,-680.06,0.00022999,30]
[380263774,1755630337095,-523.52,0.00022999,30]
[380263775,1755630337144,-400.0,0.00022999,30]
[380263776,1755630337195,-514.84,0.00022999,30]
[380263777,1755630337246,-2485.42,0.00022999,30]
[380263778,1755630337299,-400.0,0.00022999,30]
[380263779,1755630337351,-2070.68,0.00022999,30]
[380263780,1755630337400,-2109.71,0.00022999,30]
[380263781,1755630337449,-765.55,0.00022999,30]
[380263782,1755630337498,-400.0,0.00022999,30]
[380263783,1755630337546,-400.0,0.00022999,30]
[380263784,1755630337600,-2380.79,0.00022999,30]
[380263785,1755630337650,-400.0,0.00022999,30]
[380263786,1755630337700,-609.66,0.00022999,30]
[380263787,1755630337748,-400.0,0.00022999,30]
[380263788,1755630337796,-400.0,0.00022999,30]
[380263789,1755630337846,-2214.91,0.00022999,30]
[380263790,1755630337894,-400.0,0.00022999,30]
[380263791,1755630337947,-1455.64,0.00022999,30]
[380263792,1755630337999,-812.07,0.00022999,30]
[380263793,1755630338053,-2318.11,0.00022999,30]
[380263794,1755630338107,-735.73,0.00022999,30]
[380263795,1755630338156,-624.94,0.00022999,30]
[380263796,1755630338205,-2543.44,0.00022999,30]
[380263797,1755630338253,-400.0,0.00022999,30]
[380263798,1755630338305,-475.29,0.00022999,30]
[380263799,1755630338360,-400.0,0.00022999,30]
[380263800,1755630338410,-1267.25,0.00022999,30]
[380263801,1755630338458,-480.84,0.00022999,30]
[380263802,1755630338506,-1790.38,0.00022999,30]
[380263803,1755630338558,-1978.17,0.00022999,30]
[380263804,1755630338610,-991.43,0.00022999,30]
[380263805,1755630338661,-2403.23,0.00022999,30]
[380263806,1755630338711,-457.25,0.00022999,30]
[380263807,1755630338762,-400.0,0.00022999,30]
[380263808,1755630338813,-435.28,0.00022999,30]
[380263809,1755630338866,-400.0,0.00022999,30]
[380263810,1755630338915,-600.44,0.00022999,30]
[380263811,1755630338963,-739.64,0.00022999,30]
[380263812,1755630339011,-706.07,0.00022999,30]
[380263813,1755630339062,-752.31,0.00022999,30]
[380263814,1755630339113,-840.02,0.00022999,30]
[380263815,1755630339166,-2897.61,0.00022999,30]
[380263816,1755630339219,-1691.99,0.00022999,30]
[380263817,1755630339272,-1037.15,0.00022999,30]
[380263818,1755630339324,-400.0,0.00022999,30]
[380263819,1755630339377,-1106.8,0.00022999,30]